bitfinex-derivatives/quotes_ETHF0:USTF0_20210402
["timestamp","ask_amount","ask_price","bid_price","bid_amount"]
[1617377039261,30.0,2066.8,2065.0,4.21695]
[1617377040663,2.4222107,2066.3,2065.8,2.90695]
[1617377042165,32.96,2066.7,2065.8,2.90695]
[1617377042765,2.90695,2065.9,2065.8,2.90695]
[1617377043565,2.90695,2065.9,2065.0,1.31]
[1617377043766,2.90695,2065.9,2064.2,32.0]
[1617377044065,80.7377,2065.8,2064.2,32.0]
[1617377044766,79.7728,2065.8,2065.5,2.90695]
[1617377045767,78.8079,2065.8,2065.5,2.90695]
[1617377046768,2.90695,2065.6,2065.2,2.90695]
[1617377048672,2.90695,2065.3,2065.2,2.90695]
[1617377051777,1.98065,2065.3,2065.2,2.90695]
[1617377052176,1.98065,2065.3,2065.0,0.42]
[1617377052777,1.01575,2065.3,2065.0,0.42]
[1617377054380,0.99575,2065.3,2065.0,0.42]
[1617377059883,0.03085,2065.3,2065.0,0.42]
[1617377060885,0.03085,2065.3,2065.2,2.90695]
[1617377062485,108.8079,2065.8,2065.2,2.90695]
[1617377062486,78.8079,2065.8,2065.2,2.90695]
[1617377062686,0.9692,2066.0,2065.2,2.90695]
[1617377062885,0.9692,2066.0,2065.7,2.90695]
[1617377063086,63.7533,2066.5,2065.7,4.89895]
[1617377063291,2.96,2066.7,2065.7,4.89895]
[1617377063492,2.0,2066.5,2065.7,1.992]
[1617377063692,30.0,2066.4,2065.7,1.992]
[1617377063893,62.0755,2065.7,2065.0,0.42]
[1617377064092,64.4595,2065.7,2065.0,0.42]
[1617377064894,64.4595,2065.7,2065.1,2.90695]
[1617377066096,94.4595,2065.7,2065.1,2.90695]
[1617377066799,2.90695,2065.2,2065.1,2.90695]
[1617377067000,3.87365,2065.2,2065.1,2.90695]
[1617377067201,5.37465,2065.2,2065.1,2.90695]
[1617377067402,5.37465,2065.2,2065.1,0.03135]
[1617377067602,5.37465,2065.2,2059.7,6.13479369]
[1617377067603,5.37465,2065.2,2062.8,2.9635]
[1617377067803,5.37465,2065.2,2063.0,2.0]
[1617377068205,79.5074,2064.3,2063.0,2.0]
[1617377068807,79.5074,2064.3,2064.2,2.90695]
[1617377069008,0.9561,2064.6,2064.2,2.90695]
[1617377070809,0.9561,2064.6,2063.0,2.0]
[1617377070810,0.9561,2064.6,2064.5,2.90695]
[1617377071410,2.90695,2064.7,2064.5,2.90695]
[1617377072510,3.88565,2064.7,2064.5,2.90695]
[1617377072911,2.90695,2064.7,2064.5,2.90695]
[1617377073911,2.86835,2064.7,2064.5,2.90695]
[1617377074112,72.4217,2064.8,2064.5,2.90695]
[1617377074311,71.4409,2064.8,2064.5,2.90695]
[1617377075315,72.4225,2064.8,2064.5,2.90695]
[1617377080821,75.32945,2064.8,2064.5,2.90695]
[1617377086422,71.4409,2064.8,2064.5,2.90695]
[1617377086821,70.4735,2064.8,2064.5,2.90695]
[1617377087822,2.96335377,2065.4,2064.5,2.90695]
[1617377088024,2.96335377,2065.4,2064.5,4.81315]
[1617377088624,2.90695,2065.4,2064.5,6.81315]
[1617377089027,0.05648571,2065.6,2065.3,4.41575]
[1617377090631,0.45188569,2065.9,2065.3,4.41575]
[1617377090632,0.05654356,2065.7,2065.3,4.41575]
[1617377091029,0.05654356,2065.7,2065.6,2.90695]
[1617377091429,0.45234847,2066.0,2065.6,2.90695]
[1617377091430,0.05654155,2065.8,2065.6,2.90695]
[1617377093433,0.90909056,2065.7,2065.6,2.90695]
[1617377093835,4.0433132,2065.9,2065.6,2.90695]
[1617377094035,1.1363632,2065.9,2065.6,2.90695]
[1617377094934,4.0433132,2065.9,2065.6,2.90695]
[1617377095536,1.32895177,2065.8,2065.6,2.90695]
[1617377095936,0.68074554,2065.7,2065.6,2.90695]
[1617377096535,1.32898444,2065.7,2065.6,2.90695]
[1617377096737,0.68074554,2065.7,2065.6,2.90695]
[1617377097639,1.32893558,2065.8,2065.6,4.73385]
[1617377097840,0.28359734,2065.8,2065.6,4.73385]
[1617377098941,0.45380521,2065.7,2065.6,4.73385]
[1617377099740,0.68071772,2065.8,2065.6,2.90695]
[1617377100041,67.69271772,2065.8,2065.6,2.90695]
[1617377100943,69.63226772,2065.8,2065.6,2.90695]
[1617377101142,2.90695,2065.8,2065.6,2.90695]
[1617377103345,1.13455905,2066.2,2065.6,4.72715]
[1617377103948,1.98831474,2066.4,2065.6,4.72715]
[1617377103949,0.45380435,2065.7,2065.6,4.72715]
[1617377104348,0.28362567,2065.7,2065.6,6.72715]
[1617377105750,0.28362567,2065.7,2065.6,7.70745]
[1617377105950,0.28362567,2065.7,2065.6,5.70745]
[1617377106652,0.05665011,2065.7,2065.6,35.70745]
[1617377106856,0.02832202,2065.8,2065.6,35.70745]
[1617377107051,0.02832202,2065.8,2065.6,37.70745]
[1617377107252,0.02832076,2065.9,2065.6,37.70745]
[1617377107452,0.02832076,2065.9,2065.6,36.72715]
[1617377107652,0.02832045,2065.8,2065.6,36.72715]
[1617377107851,3.89373279,2066.7,2065.6,36.72715]
[1617377108051,3.89373279,2066.7,2065.6,34.72715]
[1617377108252,1.13293941,2066.6,2065.6,34.72715]
[1617377108451,1.13293941,2066.6,2065.6,4.72715]
[1617377108952,1.13293941,2066.6,2066.4,2.90695]
[1617377109352,1.13293941,2066.6,2065.2,2.0]
[1617377109952,1.13297391,2066.5,2065.2,2.0]
[1617377110153,1.13297391,2066.5,2065.0,2.0]
[1617377110752,2.91540988,2066.6,2065.0,2.0]
[1617377110952,1.13296404,2066.5,2065.0,2.0]
[1617377111152,1.13296404,2066.5,2066.0,2.90695]
[1617377111752,2.9154058,2066.6,2066.0,2.90695]
[1617377111952,1.13297018,2066.5,2066.0,2.90695]
[1617377113252,2.90695,2066.1,2066.0,2.90695]
[1617377114852,1.93955,2066.1,2066.0,2.90695]
[1617377121868,2.27196122,2066.6,2066.0,2.90695]
[1617377122474,1.78084211,2066.6,2066.0,34.84255]
[1617377122867,2.83502271,2067.1,2066.0,34.84255]
[1617377122868,1.13285674,2067.1,2066.0,34.84255]
[1617377123267,1.13285674,2067.1,2067.0,2.90695]
[1617377123467,1.13280932,2067.2,2067.0,4.58775]
[1617377123671,0.6407043,2067.1,2067.0,4.58775]
[1617377124378,1.13287017,2067.1,2067.0,4.58775]
[1617377124977,0.90490747,2067.2,2067.0,2.90695]
[1617377125177,3.54171326,2067.1,2067.0,2.90695]
[1617377125578,2.90695,2067.1,2067.0,2.90695]
[1617377125778,3.53938427,2067.1,2067.0,2.90695]
[1617377126178,4.44430878,2067.1,2067.0,2.90695]
[1617377126980,3.53938427,2067.1,2067.0,2.90695]
[1617377127380,0.63243427,2067.1,2067.0,2.90695]
[1617377127980,0.9752,2067.2,2067.0,2.90695]
[1617377128180,1.13100423,2067.4,2067.0,2.90695]
[1617377128381,0.90510121,2067.2,2067.0,2.90695]
[1617377128781,0.90500329,2067.1,2067.0,2.90695]
[1617377128980,0.63292806,2067.1,2067.0,2.90695]
[1617377129483,0.9696,2067.3,2067.0,2.90695]
[1617377129681,2.90695,2067.4,2067.0,2.90695]
[1617377129882,0.62557098,2067.3,2067.0,2.90695]
[1617377132087,1.98191534,2067.9,2067.0,2.90695]
[1617377133087,1.9812387,2068.0,2067.0,2.90695]
[1617377133287,1.9812387,2068.0,2067.9,2.90695]
[1617377135391,4.8881887,2068.0,2067.9,2.90695]
[1617377135891,4.54618344,2068.0,2067.9,2.90695]
[1617377136291,3.53234474,2068.0,2067.9,2.90695]
[1617377139192,2.90695,2068.0,2067.9,4.32665]
[1617377140395,8.11575522,2069.2,2067.9,4.32665]
[1617377140595,8.11575522,2069.2,2068.0,2.0]
[1617377140995,0.9806,2068.9,2068.0,2.0]
[1617377141395,0.9806,2068.9,2068.6,2.90695]
[1617377141595,5.29314273,2069.2,2068.6,4.18915]
[1617377141996,4.32674273,2069.2,2068.6,4.18915]
[1617377142195,3.96119645,2069.4,2068.6,4.18915]
[1617377142395,2.82309819,2069.6,2068.6,4.18915]
[1617377142896,3.26725,2068.8,2068.6,4.18915]
[1617377146002,3.26725,2068.8,2068.6,2.90695]
[1617377147305,2.90695,2068.7,2068.6,2.90695]
[1617377149906,1.93955,2068.7,2068.6,2.90695]
[1617377150106,1.93955,2068.7,2067.4,1.4562]
[1617377150309,1.93955,2068.7,2067.3,2.0]
[1617377150506,60.1809,2068.5,2067.3,2.0]
[1617377150706,63.1062,2068.5,2067.3,2.0]
[1617377151410,63.1062,2068.5,2068.2,2.90695]
[1617377151607,2.9253,2068.5,2068.2,2.90695]
[1617377151809,2.9253,2068.5,2067.3,2.0]
[1617377152210,32.9253,2068.5,2067.3,2.0]
[1617377152412,32.9253,2068.5,2065.9,30.0]
[1617377152611,32.9253,2068.5,2066.0,2.0]
[1617377152813,2.9253,2068.5,2066.1,30.0]
[1617377153011,2.9253,2068.5,2066.2,2.0]
[1617377153211,2.9253,2068.5,2066.3,30.0]
[1617377153411,2.9253,2068.5,2068.2,2.90695]
[1617377153813,2.9253,2068.5,2066.4,32.0]
[1617377155515,2.9253,2068.5,2068.1,2.90695]
[1617377155715,32.9253,2068.5,2066.4,32.0]
[1617377156716,34.9253,2068.5,2066.4,32.0]
[1617377156916,34.9253,2068.5,2066.4,2.0]
[1617377157218,32.9253,2068.5,2066.5,2.0]
[1617377157418,32.9253,2068.5,2067.6,2.90695]
[1617377157818,30.0,2067.7,2065.6,13.6762]
[1617377158018,30.9703,2067.7,2065.6,15.6762]
[1617377158418,73.1338,2067.0,2065.6,15.6762]
[1617377158618,74.7303,2067.0,2065.6,15.6762]
[1617377159019,74.7303,2067.0,2065.6,2.0]
[1617377159421,74.7303,2067.0,2066.9,2.90695]
[1617377159620,2.90695,2067.2,2066.9,2.90695]
[1617377167832,32.90695,2067.2,2066.9,2.90695]
[1617377168033,76.5634,2067.1,2066.9,2.90695]
[1617377168233,108.0779,2067.1,2066.9,2.90695]
[1617377168732,78.0779,2067.1,2066.9,2.90695]
[1617377169134,78.0779,2067.1,2066.9,2.75835]
[1617377172136,108.0779,2067.1,2066.9,2.75835]
[1617377173339,108.0779,2067.1,2065.1,2.9643]
[1617377173537,2.90695,2066.6,2066.5,2.90695]
[1617377173737,3.88795,2066.6,2066.5,2.90695]
[1617377173938,5.65865,2066.6,2066.5,2.90695]
[1617377175843,4.67765,2066.6,2066.5,2.90695]
[1617377178643,5.64895,2066.6,2066.5,2.90695]
[1617377181549,5.64895,2066.6,2066.5,1.91495]
[1617377181750,5.64895,2066.6,2066.5,0.98095]
[1617377181751,35.64895,2066.6,2066.5,0.98095]
[1617377181951,70.92,2066.1,2064.3,2.0]
[1617377182355,72.1388,2066.1,2064.3,2.0]
[1617377182753,102.1388,2066.1,2064.3,2.0]
[1617377183152,103.0965,2066.1,2064.3,2.0]
[1617377183553,103.0965,2066.1,2065.5,2.90695]
[1617377184251,73.0965,2066.1,2065.5,2.90695]
[1617377185655,2.90695,2065.6,2065.5,2.90695]
[1617377186058,4.81505,2065.6,2065.5,2.90695]
[1617377187258,4.81505,2065.6,2063.9,32.0]
[1617377187457,78.7702,2065.1,2063.9,2.0]
[1617377187657,81.67715,2065.1,2065.0,2.90695]
[1617377187859,82.90645,2065.1,2065.0,2.90695]
[1617377189460,4.13625,2065.1,2065.0,2.90695]
[1617377189662,1.2293,2065.1,2065.0,2.90695]
[1617377190061,63.4879,2065.5,2065.0,2.90695]
[1617377191063,64.4629,2065.5,2065.0,2.90695]
[1617377191264,63.4879,2065.5,2065.0,2.90695]
[1617377191663,66.39485,2065.5,2065.4,2.90695]
[1617377193169,63.4879,2065.5,2065.4,2.90695]
[1617377197474,63.4879,2065.5,2063.8,32.0]
[1617377197674,1.8772,2065.6,2065.1,2.90695]
[1617377198687,80.8192,2065.3,2065.1,2.90695]
[1617377199679,83.72615,2065.3,2065.1,2.90695]
[1617377206788,80.8192,2065.3,2065.1,2.90695]
[1617377209687,2.90695,2065.2,2065.1,2.90695]
[1617377216297,57.3082,2065.5,2065.1,2.90695]
[1617377217800,2.90695,2065.2,2065.1,2.90695]
[1617377228115,1.94145,2065.2,2065.1,2.90695]
[1617377229316,65.58735,2065.2,2065.1,2.90695]
[1617377232017,63.6459,2065.2,2065.1,2.90695]
[1617377232624,30.44409584,2066.4,2065.1,2.90695]
[1617377232822,61.8946,2066.3,2065.1,4.66715]
[1617377233923,61.8946,2066.3,2066.2,2.90695]
[1617377234729,91.8946,2066.3,2066.2,2.90695]
[1617377235022,90.9291,2066.3,2066.2,2.90695]
[1617377236022,93.83605,2066.3,2066.2,2.90695]
[1617377236623,60.9291,2066.3,2066.2,2.90695]
[1617377238026,0.44431781,2066.8,2066.2,4.84455]
[1617377238223,2.90695,2066.9,2066.2,4.84455]
[1617377238224,0.44616655,2066.3,2066.2,4.84455]
[1617377240426,0.67021617,2066.4,2066.2,4.84455]
[1617377241025,0.44680664,2066.3,2066.2,4.84455]
[1617377241424,0.67020996,2066.5,2066.2,4.84455]
[1617377241926,0.44667876,2066.3,2066.2,4.84455]
[1617377242126,0.15138872,2066.5,2066.2,4.84455]
[1617377242326,80.44128872,2066.5,2066.2,4.84455]
[1617377242929,0.60773423,2066.4,2066.2,2.90695]
[1617377244128,3.51468423,2066.4,2066.2,2.90695]
[1617377244329,2.90695,2066.4,2066.2,2.90695]
[1617377244930,80.2899,2066.5,2066.2,2.90695]
[1617377245131,80.2899,2066.5,2066.2,4.35945]
[1617377248238,2.90695,2066.7,2066.2,4.35945]
[1617377248438,0.88948754,2067.1,2066.2,4.35945]
[1617377249037,0.52910835,2067.1,2066.2,4.35945]
[1617377250039,0.52910835,2067.1,2066.9,2.90695]
[1617377250440,0.52910835,2067.1,2066.7,1.8901]
[1617377250641,0.52910835,2067.1,2066.2,1.4525]
[1617377250840,0.52910835,2067.1,2065.5,1.3801]
[1617377251040,1.11501202,2067.0,2065.4,32.0]
[1617377251240,1.71539185,2067.0,2065.4,2.0]
[1617377251441,1.71539185,2067.0,2064.7,32.0]
[1617377251642,1.11501202,2067.0,2064.7,32.0]
[1617377251842,68.0576,2066.8,2064.7,32.0]
[1617377252043,70.96455,2066.8,2066.7,2.90695]
[1617377252242,2.90695,2066.8,2066.7,2.90695]
[1617377252643,2.90695,2066.8,2065.6,1.6605]
[1617377253046,0.60004432,2066.7,2065.6,1.6605]
[1617377254146,0.60004432,2066.7,2066.6,2.90695]
[1617377256149,2.54149432,2066.8,2066.6,2.90695]
[1617377263155,1.57599432,2066.8,2066.6,2.90695]
[1617377268364,1.57599432,2066.8,2066.6,4.76185]
[1617377268763,59.7075,2067.0,2066.6,4.76185]
[1617377270064,58.742,2067.0,2066.6,4.76185]
[1617377270263,58.742,2067.0,2066.9,2.90695]
[1617377270463,2.90695,2067.2,2066.9,2.90695]
[1617377271565,1.12318547,2067.6,2066.9,2.90695]
[1617377271766,2.26111376,2067.7,2066.9,2.90695]
[1617377272367,2.26111376,2067.7,2067.6,2.90695]
[1617377273567,1.13838871,2067.7,2067.6,2.90695]
[1617377273966,2.25939772,2067.7,2067.6,2.90695]
[1617377274265,2.90695,2067.7,2067.6,2.90695]
[1617377275166,2.90695,2067.7,2066.6,1.8549]
[1617377275369,2.90695,2067.7,2066.1,1.9173]
[1617377275567,73.9914,2067.2,2065.8,2.0]
[1617377276168,73.9914,2067.2,2065.5,2.0]
[1617377276366,73.9914,2067.2,2065.4,30.0]
[1617377276367,73.9914,2067.2,2067.1,2.90695]
[1617377277166,73.0259,2067.2,2067.1,2.90695]
[1617377277766,1.11820439,2068.0,2067.1,2.90695]
[1617377277966,0.42,2067.2,2067.1,2.90695]
[1617377278367,3.32695,2067.2,2067.1,2.90695]
[1617377283374,4.30495,2067.2,2067.1,2.90695]
[1617377283570,67.12395,2067.2,2067.1,2.90695]
[1617377284172,66.70395,2067.2,2067.1,2.90695]
[1617377284376,66.15845,2067.2,2067.1,2.90695]
[1617377288476,65.18045,2067.2,2067.1,2.90695]
[1617377288875,62.819,2067.2,2067.1,2.90695]
[1617377291275,61.8535,2067.2,2067.1,2.90695]
[1617377291877,0.05582314,2067.8,2067.1,2.90695]
[1617377292475,2.00509112,2068.0,2067.7,2.90695]
[1617377292676,0.05589112,2068.0,2067.7,4.18855]
[1617377293476,0.05591951,2068.1,2067.7,4.18855]
[1617377294491,0.05591951,2068.1,2068.0,2.90695]
[1617377294679,0.05593713,2068.2,2068.0,2.90695]
[1617377294878,0.0559638,2068.4,2068.0,2.90695]
[1617377295077,0.0559638,2068.4,2068.1,2.0]
[1617377295278,0.05597434,2068.5,2068.1,2.0]
[1617377295678,0.05599315,2068.7,2068.1,2.0]
[1617377296279,0.05599315,2068.7,2068.1,2.9532]
[1617377296480,0.05599315,2068.7,2068.6,2.90695]
[1617377296680,0.05599315,2068.7,2068.6,4.59275]
[1617377296880,3.32327654,2068.8,2068.6,4.59275]
[1617377297284,2.30125,2068.8,2068.6,4.59275]
[1617377301385,82.49785,2068.8,2068.6,4.59275]
[1617377302788,2.30125,2068.8,2068.6,4.59275]
[1617377303190,2.30125,2068.8,2068.6,5.55445]
[1617377303391,2.30125,2068.8,2068.6,4.59275]
[1617377303990,2.30125,2068.8,2068.7,2.0]
[1617377304191,0.9738,2069.8,2068.7,32.0]
[1617377304389,0.05596082,2070.0,2068.7,32.0]
[1617377304390,0.05596082,2070.0,2068.7,32.9759]
[1617377304590,0.05599181,2070.2,2069.9,2.90695]
[1617377304792,0.05600996,2070.3,2069.9,4.30385]
[1617377305192,3.94316817,2070.4,2069.9,4.30385]
[1617377305392,2.96296817,2070.4,2069.9,4.30385]
[1617377306297,3.92096817,2070.4,2069.9,4.30385]
[1617377306497,3.92096817,2070.4,2070.3,2.90695]
[1617377307098,2.96296817,2070.4,2070.3,2.90695]
[1617377307499,2.90695,2070.4,2070.3,2.90695]
[1617377308300,2.90695,2070.4,2069.3,1.3321]
[1617377308501,0.05606325,2070.5,2070.0,2.90695]
[1617377308700,0.05604292,2070.4,2070.0,2.90695]
[1617377309101,0.05603245,2070.3,2070.0,2.90695]
[1617377309301,1.02223245,2070.3,2069.3,1.3321]
[1617377309501,79.722,2069.8,2069.3,1.3321]
[1617377310502,79.722,2069.8,2069.7,2.90695]
[1617377311304,78.756,2069.8,2069.7,2.90695]
[1617377311505,0.05604215,2070.2,2069.7,2.90695]
[1617377312105,0.05604725,2070.3,2069.7,2.90695]
[1617377312309,0.05606441,2070.4,2069.7,2.90695]
[1617377312508,0.05606441,2070.4,2070.0,2.90695]
[1617377312705,0.05606441,2070.4,2070.0,4.33955]
[1617377313104,71.1859,2070.5,2070.0,4.33955]
[1617377313704,0.05590061,2071.2,2070.0,4.33955]
[1617377313905,0.05591724,2071.4,2070.0,4.33955]
[1617377314305,0.05591724,2071.4,2070.0,34.33955]
[1617377314506,0.05591724,2071.4,2071.0,2.90695]
[1617377314705,0.05591724,2071.4,2071.0,4.35465]
[1617377315109,61.5248,2071.6,2071.0,4.35465]
[1617377315308,0.0559099,2071.7,2071.0,4.35465]
[1617377315708,0.9616,2071.9,2071.1,2.0]
[1617377316107,2.41592578,2071.7,2071.1,2.0]
[1617377316708,2.41592578,2071.7,2071.6,4.86925]
[1617377318307,1.44992578,2071.7,2071.6,4.86925]
[1617377318507,0.9616,2071.9,2071.6,4.86925]
[1617377319109,1.01757079,2071.9,2071.6,4.86925]
[1617377319308,1.01757079,2071.9,2071.6,2.90695]
[1617377319509,0.05597112,2071.8,2071.6,2.90695]
[1617377320711,2.90695,2071.7,2071.6,2.90695]
[1617377322714,0.9616,2071.9,2071.6,2.90695]
[1617377322911,0.9616,2071.9,2071.6,4.52065]
[1617377324613,2.90695,2071.7,2071.6,4.52065]
[1617377325014,2.90695,2071.7,2071.6,2.90695]
[1617377325215,1.94095,2071.7,2071.6,2.90695]
[1617377325616,1.94095,2071.7,2070.1,44.0279]
[1617377325617,1.94095,2071.7,2070.2,2.0]
[1617377326014,74.7836,2071.5,2070.2,2.0]
[1617377326614,74.7836,2071.5,2071.3,2.90695]
[1617377326815,0.9604,2071.6,2071.3,2.90695]
[1617377327015,0.9616,2071.9,2071.3,2.90695]
[1617377327016,54.4933,2071.8,2071.3,2.90695]
[1617377327514,84.4933,2071.8,2070.8,1.9476]
[1617377327914,54.4933,2071.8,2070.8,1.9476]
[1617377328114,54.4933,2071.8,2070.2,2.0]
[1617377328715,54.4933,2071.8,2071.1,2.90695]
[1617377329922,54.4933,2071.8,2071.1,4.24295]
[1617377330122,0.9616,2071.9,2071.1,4.24295]
[1617377330521,57.0884,2071.5,2071.1,4.24295]
[1617377330723,2.90695,2071.2,2071.1,4.24295]
[1617377331723,2.90695,2071.2,2071.1,2.90695]
[1617377332324,1.94095,2071.2,2071.1,2.90695]
[1617377332525,1.94095,2071.2,2069.6,2.0]
[1617377332725,79.9601,2070.6,2069.6,2.0]
[1617377333325,30.0,2070.6,2069.1,2.0]
[1617377333525,67.6921,2069.7,2068.2,26.8654]
[1617377333725,69.884,2069.7,2068.3,30.0]
[1617377333926,68.9262,2069.7,2068.3,30.0]
[1617377334325,68.9262,2069.7,2068.4,2.0]
[1617377334726,71.83315,2069.7,2069.6,2.90695]
[1617377334926,72.80405,2069.7,2069.6,2.90695]
[1617377335127,5.11195,2069.7,2069.6,2.90695]
[1617377335529,2.90695,2069.7,2069.6,2.90695]
[1617377338831,3.88375,2069.7,2069.6,2.90695]
[1617377339230,2.91775,2069.7,2069.6,2.90695]
[1617377339831,4.41045,2069.7,2068.3,2.0]
[1617377340031,80.7066,2069.6,2068.2,13.0545]
[1617377340431,80.7066,2069.6,2068.0,2.0]
[1617377340636,80.7066,2069.6,2069.1,2.90695]
[1617377341232,0.9768,2069.7,2069.1,2.90695]
[1617377341632,0.9768,2069.7,2069.1,4.90695]
[1617377342433,0.9768,2069.7,2069.1,2.90695]
[1617377342632,0.9768,2069.7,2069.6,2.90695]
[1617377343933,70.5071,2070.0,2069.6,2.90695]
[1617377344935,69.5525,2070.0,2069.6,2.90695]
[1617377346237,68.5865,2070.0,2069.6,2.90695]
[1617377346739,68.5865,2070.0,2069.9,2.90695]
[1617377349439,9.09305,2069.6,2069.5,1.356]
[1617377350142,9.09305,2069.6,2069.0,33.4515]
[1617377350743,9.09305,2069.6,2069.5,2.90695]
[1617377350942,9.09305,2069.6,2069.5,4.90695]
[1617377351144,9.09305,2069.6,2069.5,6.51735]
[1617377351946,9.09305,2069.6,2069.5,36.51735]
[1617377353352,2.90695,2070.8,2069.5,36.51735]
[1617377353353,1.94095,2070.8,2069.5,36.51735]
[1617377354752,2.89785,2070.8,2070.7,2.90695]
[1617377354953,1.94095,2070.8,2070.7,4.21215]
[1617377356456,1.94095,2070.8,2070.7,2.90695]
[1617377357055,2.91605,2070.8,2070.7,2.90695]
[1617377357455,1.94095,2070.8,2070.7,2.90695]
[1617377359260,79.49565,2070.8,2070.7,2.90695]
[1617377360258,78.52965,2070.8,2070.7,2.90695]
[1617377361258,0.02797798,2071.7,2070.7,2.90695]
[1617377361660,0.02797456,2072.0,2070.7,2.90695]
[1617377361862,0.02797456,2072.0,2070.8,2.0]
[1617377362059,72.52224913,2072.1,2070.8,3.5496]
[1617377362060,0.9895746,2071.9,2070.8,3.5496]
[1617377362459,0.9616,2071.9,2070.8,3.5496]
[1617377362860,0.9616,2071.9,2071.8,2.90695]
[1617377364763,3.86855,2071.9,2071.8,2.90695]
[1617377364965,3.92463586,2071.9,2071.8,2.90695]
[1617377366066,3.86855,2071.9,2071.8,2.90695]
[1617377366266,2.90695,2071.9,2071.8,2.90695]
[1617377366466,2.90415,2071.9,2071.8,2.90695]
[1617377367368,3.85835,2071.9,2071.8,2.90695]
[1617377368069,2.90415,2071.9,2071.8,2.90695]
[1617377368270,2.96023491,2071.9,2071.8,2.90695]
[1617377369272,1.99583491,2071.9,2071.8,2.90695]
[1617377369670,1.96779144,2071.9,2071.8,2.90695]
[1617377370270,1.93975,2071.9,2071.8,2.90695]
[1617377373274,1.45745,2071.9,2071.8,2.90695]
[1617377376079,0.02800227,2072.3,2071.8,2.90695]
[1617377376279,0.02800227,2072.3,2071.8,4.31375]
[1617377376481,0.23951715,2073.0,2071.8,4.31375]
[1617377376680,65.647,2073.2,2071.8,4.31375]
[1617377376883,65.647,2073.2,2072.3,2.90695]
[1617377377681,95.647,2073.2,2072.3,2.90695]
[1617377378482,0.25583838,2073.1,2072.3,2.90695]
[1617377378882,2.25583838,2073.1,2072.3,2.90695]
[1617377379083,2.90695,2072.4,2072.3,2.90695]
[1617377383387,1.94255,2072.4,2072.3,2.90695]
[1617377385387,1.94255,2072.4,2071.3,1.9783]
[1617377385586,1.94255,2072.4,2070.9,32.0]
[1617377385785,68.9063,2072.2,2070.9,32.0]
[1617377385987,69.8694,2072.2,2070.9,32.0]
[1617377386187,68.9063,2072.2,2070.9,32.0]
[1617377386387,68.9063,2072.2,2070.9,2.0]
[1617377386587,68.9063,2072.2,2070.5,0.9533]
[1617377386789,68.9063,2072.2,2070.1,30.0]
[1617377386987,68.9063,2072.2,2072.1,2.90695]
[1617377387189,1.94255,2072.4,2072.1,2.90695]
[1617377387388,73.6862,2072.3,2072.1,2.90695]
[1617377389690,73.6862,2072.3,2072.1,3.86915]
[1617377390088,73.6862,2072.3,2072.1,2.90695]
[1617377390289,72.7218,2072.3,2072.1,2.90695]
[1617377397394,71.7574,2072.3,2072.1,2.90695]
[1617377401495,1.94255,2072.4,2072.1,4.81675]
[1617377401996,0.9522,2072.8,2072.1,4.81675]
[1617377403197,3.85915,2072.8,2072.7,2.90695]
[1617377403597,3.85915,2072.8,2072.7,4.43745]
[1617377404400,2.89475,2072.8,2072.7,4.43745]
[1617377405601,2.89475,2072.8,2072.7,6.43745]
[1617377406001,1.85371194,2073.4,2072.7,6.43745]
[1617377406202,0.89941194,2073.4,2072.7,6.43745]
[1617377406603,65.2034,2073.9,2072.7,6.43745]
[1617377406604,0.89932092,2073.5,2072.7,6.43745]
[1617377406804,0.89928947,2073.6,2072.7,6.43745]
[1617377407205,0.89924876,2073.7,2073.4,2.90695]
[1617377407403,0.89924876,2073.7,2073.4,4.66535]
[1617377407605,0.58981387,2073.5,2073.4,4.66535]
[1617377408004,0.89924876,2073.7,2073.4,4.66535]
[1617377408206,2.61995014,2073.8,2073.4,4.66535]
[1617377408607,65.2034,2073.9,2073.4,4.66535]
[1617377408608,0.58977815,2073.6,2073.4,4.66535]
[1617377409006,0.58975742,2073.8,2073.4,4.66535]
[1617377409205,0.58975742,2073.8,2073.7,2.90695]
[1617377409607,1.4887992,2074.1,2073.7,2.90695]
[1617377409806,1.4887992,2074.1,2073.8,2.0]
[1617377410207,2.90695,2074.2,2073.8,2.0]
[1617377410607,3.80594904,2074.2,2073.8,2.0]
[1617377411207,0.89899904,2074.2,2074.1,3.97545707]
[1617377411407,1.05834784,2074.4,2074.1,5.97545707]
[1617377411607,2.90695,2074.5,2074.1,5.97545707]
[1617377411608,4.03067896,2074.5,2074.1,5.97545707]
[1617377411808,1.12372896,2074.5,2074.1,5.97545707]
[1617377412009,55.3111,2074.7,2074.1,5.97545707]
[1617377412409,3.6199,2075.0,2074.1,5.97545707]
[1617377413209,3.6199,2075.0,2074.9,2.90695]
[1617377415911,3.6199,2075.0,2074.1,1.6598]
[1617377416312,3.6199,2075.0,2073.6,32.0]
[1617377417313,3.6199,2075.0,2074.9,2.90695]
[1617377418318,2.6555,2075.0,2074.9,2.90695]
[1617377419517,57.1847,2075.0,2074.9,2.90695]
[1617377419918,2.6555,2075.0,2074.9,2.90695]
[1617377420118,3.6168,2075.0,2074.9,2.90695]
[1617377420519,2.6555,2075.0,2074.9,2.90695]
[1617377425421,2.1726,2075.0,2074.9,2.90695]
[1617377426231,3.6338,2075.0,2073.6,32.0]
[1617377427433,2.1726,2075.0,2074.9,2.90695]
[1617377428935,2.1726,2075.0,2073.9,1.6699]
[1617377429137,2.1726,2075.0,2073.6,2.0]
[1617377429338,2.1726,2075.0,2074.6,2.90695]
[1617377429538,2.1726,2075.0,2073.6,2.0]
[1617377429938,2.1726,2075.0,2071.8,30.0]